bitfinex/quotes_BTCUSD_20250814
["timestamp","ask_amount","ask_price","bid_price","bid_amount"]
[1755199813223,2.04499709,118360.0,118350.0,1e-08]
[1755199813946,2.04399709,118360.0,118350.0,1e-08]
[1755199814609,2.04699709,118360.0,118350.0,1e-08]
[1755199815046,0.18648215,118320.0,118310.0,0.00305]
[1755199815310,1.25549524,118320.0,118310.0,0.00528732]
[1755199815523,0.85954652,118320.0,118310.0,0.00528732]
[1755199815949,0.88492752,118320.0,118310.0,0.00528732]
[1755199816381,0.4889788,118320.0,118310.0,0.00728732]
[1755199816579,0.88492752,118320.0,118310.0,0.00728732]
[1755199816996,1.28087624,118320.0,118310.0,0.00728732]
[1755199817171,1.28287624,118320.0,118310.0,0.00728732]
[1755199817404,1.28287624,118320.0,118310.0,0.00523732]
[1755199817605,1.28594624,118320.0,118310.0,0.00314732]
[1755199817952,1.29972162,118320.0,118310.0,0.00314732]
[1755199818359,0.50782418,118320.0,118310.0,0.00214732]
[1755199818564,1.29972162,118320.0,118310.0,0.00214732]
[1755199818740,1.29972162,118320.0,118310.0,0.00314732]
[1755199819056,1.29665162,118320.0,118310.0,0.00114732]
[1755199819714,1.26708748,118320.0,118310.0,0.00014732]
[1755199819921,1.29758,118320.0,118310.0,0.00014732]
[1755199820343,0.36904741,118310.0,118300.0,0.00345]
[1755199820548,1.07873316,118310.0,118300.0,0.00568735]
[1755199821989,0.68278444,118310.0,118300.0,0.00568735]
[1755199822189,1.07873316,118310.0,118300.0,0.00568735]
[1755199822402,1.10411816,118310.0,118300.0,0.00568735]
[1755199823378,1.11197833,118310.0,118300.0,0.00568735]
[1755199823918,1.10411816,118310.0,118300.0,0.00568735]
[1755199824306,1.11197867,118310.0,118300.0,0.00568735]
[1755199824778,0.71602995,118310.0,118300.0,0.00568735]
[1755199824997,0.18651072,118300.0,118290.0,0.02054437]
[1755199825206,1.09887647,118300.0,118290.0,0.02054437]
[1755199825434,1.09887647,118300.0,118290.0,0.02263437]
[1755199826443,0.70292775,118300.0,118290.0,0.02363437]
[1755199827102,1.09886824,118300.0,118290.0,0.02668437]
[1755199827254,1.09886824,118300.0,118290.0,0.02768437]
[1755199827678,1.01638381,118300.0,118290.0,0.02768437]
[1755199828150,0.62043509,118300.0,118290.0,0.02768437]
[1755199828359,1.01638381,118300.0,118290.0,0.02768437]
[1755199828761,0.60302607,118300.0,118290.0,0.05232437]
[1755199829716,0.60302607,118300.0,118290.0,0.03178]
[1755199829948,0.60302607,118300.0,118290.0,0.24640036]
[1755199830384,0.60298607,118300.0,118290.0,0.24640036]
[1755199830553,0.60298607,118300.0,118290.0,0.07732437]
[1755199830813,0.60298607,118300.0,118290.0,0.2485138]
[1755199831043,0.60298607,118300.0,118290.0,0.24640036]
[1755199832008,0.47034607,118300.0,118290.0,0.24640036]
[1755199832224,0.60298607,118300.0,118290.0,0.07732437]
[1755199832438,0.60298607,118300.0,118290.0,0.2485138]
[1755199832651,0.60300454,118300.0,118290.0,0.24640036]
[1755199833345,0.68106336,118300.0,118290.0,0.24640036]
[1755199833577,0.68106336,118300.0,118290.0,0.07732437]
[1755199835198,0.68894134,118300.0,118290.0,0.07732437]
[1755199835405,0.68106336,118300.0,118290.0,0.07427437]
[1755199835646,0.68894143,118300.0,118290.0,0.05373]
[1755199836045,0.68894143,118300.0,118290.0,0.07427437]
[1755199836470,0.61088261,118300.0,118290.0,0.07732437]
[1755199838314,0.47824261,118300.0,118290.0,0.2485138]
[1755199838514,0.61092261,118300.0,118290.0,0.24640036]
[1755199840092,0.61684726,118300.0,118290.0,0.24640036]
[1755199840307,1.01495628,118300.0,118290.0,0.04961437]
[1755199840514,1.10066071,118300.0,118290.0,0.02254437]
[1755199841382,1.10074048,118300.0,118290.0,0.02254437]
[1755199841610,1.10074048,118300.0,118290.0,0.02461437]
[1755199842019,1.10074048,118300.0,118290.0,0.00407]
[1755199842020,0.70479176,118300.0,118290.0,0.00407]
[1755199842227,0.70479176,118300.0,118290.0,0.02461437]
[1755199843814,0.70479176,118300.0,118290.0,0.02254437]
[1755199844256,1.10074048,118300.0,118290.0,0.02254437]
[1755199844707,1.10074048,118300.0,118290.0,0.002]
[1755199844923,1.1181895,118300.0,118290.0,0.002]
[1755199845143,1.3181895,118300.0,118290.0,0.002]
[1755199845375,1.3181895,118300.0,118290.0,0.001]
[1755199846206,1.6581895,118300.0,118290.0,0.001]
[1755199846648,0.16910459,118270.0,118260.0,0.04594437]
[1755199846863,0.83233668,118270.0,118260.0,0.04594437]
[1755199847073,0.83555668,118270.0,118260.0,0.04594437]
[1755199847310,0.83555668,118270.0,118260.0,0.0004]
[1755199847536,0.8530057,118270.0,118260.0,0.0004]
[1755199847773,0.86755379,118270.0,118260.0,0.0004]
[1755199847950,0.86755379,118270.0,118260.0,0.0024]
[1755199848163,0.86755379,118270.0,118260.0,0.0064]
[1755199848631,0.86755379,118270.0,118260.0,0.0024]
[1755199848820,0.86755379,118270.0,118260.0,0.0034]
[1755199848971,0.88967715,118270.0,118260.0,0.0034]
[1755199849199,0.88967715,118270.0,118260.0,0.0014]
[1755199849596,0.88967715,118270.0,118260.0,0.0024]
[1755199850219,0.86753964,118270.0,118260.0,0.0024]
[1755199852308,0.86161047,118270.0,118260.0,0.0024]
[1755199854014,0.86153047,118270.0,118260.0,0.0024]
[1755199855059,0.46558175,118270.0,118260.0,0.0024]
[1755199855267,0.86153047,118270.0,118260.0,0.0024]
[1755199855686,0.86151411,118270.0,118260.0,0.0024]
[1755199860306,0.72883411,118270.0,118260.0,0.0024]
[1755199860537,0.33288539,118270.0,118260.0,0.0024]
[1755199860760,0.32750539,118270.0,118260.0,0.00447]
[1755199860971,0.32750539,118270.0,118260.0,0.00753]
[1755199860972,0.40891561,118270.0,118260.0,0.00753]
[1755199861192,0.27623561,118270.0,118260.0,0.02807437]
[1755199861404,0.4003026,118270.0,118260.0,0.02807437]
[1755199863081,0.38450784,118270.0,118260.0,0.02807437]
[1755199863287,0.46699227,118270.0,118260.0,0.02807437]
[1755199864627,0.46699227,118270.0,118260.0,0.02501437]
[1755199865632,0.48278793,118270.0,118260.0,0.02501437]
[1755199867317,0.4003035,118270.0,118260.0,0.02501437]
[1755199868169,0.38450784,118270.0,118260.0,0.02501437]
[1755199868600,0.38661784,118270.0,118260.0,0.02501437]
[1755199868830,0.40560786,118270.0,118260.0,0.02501437]
[1755199869273,0.38980784,118270.0,118260.0,0.00447]
[1755199869505,0.47229227,118270.0,118260.0,0.02501437]
[1755199869716,0.47229227,118270.0,118260.0,0.00447]
[1755199869945,0.86824099,118270.0,118260.0,0.00447]
[1755199870381,0.88404855,118270.0,118260.0,0.00447]
[1755199871240,0.86824099,118270.0,118260.0,0.00447]
[1755199873851,0.86824099,118270.0,118260.0,0.0024]
[1755199875205,0.88406983,118270.0,118260.0,0.0024]
[1755199875920,0.86824099,118270.0,118260.0,0.0024]
[1755199876107,0.88406982,118270.0,118260.0,0.0024]
[1755199878019,0.88407404,118270.0,118260.0,0.0024]
[1755199878468,0.48812532,118270.0,118260.0,0.0024]
[1755199878881,0.90152306,118270.0,118260.0,0.0024]
[1755199879276,1.10152306,118270.0,118260.0,0.0024]
[1755199880150,1.15228306,118270.0,118260.0,0.0024]
[1755199880961,1.17282806,118270.0,118260.0,0.0024]
[1755199881401,1.17876442,118270.0,118260.0,0.0014]
[1755199881634,1.17876442,118270.0,118260.0,0.0004]
[1755199881833,1.18076442,118270.0,118260.0,0.0004]
[1755199882054,1.72276442,118270.0,118260.0,1e-08]
[1755199885983,0.58178354,118260.0,118250.0,1e-08]
[1755199886145,1.73788771,118260.0,118250.0,1e-08]
[1755199886362,1.74107771,118260.0,118250.0,1e-08]
[1755199887294,1.74407771,118260.0,118250.0,1e-08]
[1755199887498,1.74807771,118260.0,118250.0,1e-08]
[1755199888060,1.74806923,118260.0,118250.0,1e-08]
[1755199889100,1.7559701,118260.0,118250.0,1e-08]
[1755199889311,1.74806923,118260.0,118250.0,1e-08]
[1755199889879,1.7864912,118260.0,118250.0,1e-08]
[1755199891470,1.81044005,118260.0,118250.0,1e-08]
[1755199891701,1.77201808,118260.0,118250.0,1e-08]
[1755199892298,0.98012064,118260.0,118250.0,1e-08]
[1755199892508,1.77201808,118260.0,118250.0,1e-08]
[1755199893375,1.74806923,118260.0,118250.0,1e-08]
[1755199897709,0.38663944,118210.0,118200.0,0.00311]
[1755199897914,1.24707505,118210.0,118200.0,0.00521]
[1755199898293,1.26286171,118210.0,118200.0,0.00521]
[1755199899088,1.24905505,118210.0,118200.0,0.0021]
[1755199899295,1.26484005,118210.0,118200.0,0.0031]
[1755199899519,1.26286005,118210.0,118200.0,0.0031]
[1755199899728,1.60286005,118210.0,118200.0,0.0031]
[1755199900624,1.58699505,118210.0,118200.0,0.0031]
[1755199900835,1.58699505,118210.0,118200.0,0.00614]
[1755199901678,0.8669526,118210.0,118200.0,0.00614]
[1755199901899,1.34957768,118210.0,118200.0,0.03]
[1755199902707,1.40033768,118210.0,118200.0,0.03]
[1755199903861,1.00438896,118210.0,118200.0,0.03]
[1755199904058,1.40033768,118210.0,118200.0,0.03]
[1755199904256,1.48282211,118210.0,118200.0,0.03]
[1755199904706,1.35014211,118210.0,118200.0,0.03]
[1755199904915,0.56343339,118210.0,118200.0,0.03]
[1755199905119,0.67886437,118210.0,118200.0,0.03]
[1755199905320,0.69631339,118210.0,118200.0,0.03]
[1755199905823,1.09226211,118210.0,118200.0,0.03]
[1755199907613,1.14302211,118210.0,118200.0,0.0031]
[1755199907830,1.09226211,118210.0,118200.0,0.0031]
[1755199908287,0.71730796,118210.0,118200.0,0.0031]
[1755199908508,1.11325668,118210.0,118200.0,0.0031]
[1755199908735,1.11325668,118210.0,118200.0,0.001]
[1755199910911,1.11325668,118210.0,118200.0,1e-08]
[1755199911294,1.5092054,118210.0,118200.0,1e-08]
[1755199911500,1.7092054,118210.0,118200.0,1e-08]
[1755199911737,2.0746134,118210.0,118200.0,1e-08]
[1755199911941,1.67866468,118210.0,118200.0,1e-08]
[1755199912150,1.6925071,118210.0,118200.0,1e-08]
[1755199913521,1.69250243,118210.0,118200.0,1e-08]
[1755199913720,1.68459776,118210.0,118200.0,1e-08]
[1755199914128,1.69250242,118210.0,118200.0,1e-08]
[1755199914799,2.08845114,118210.0,118200.0,1e-08]
[1755199915003,2.12569233,118210.0,118200.0,1e-08]
[1755199916706,1.72974361,118210.0,118200.0,1e-08]
[1755199917118,2.12569233,118210.0,118200.0,1e-08]
[1755199917327,2.12568267,118210.0,118200.0,1e-08]
[1755199917958,1.33378523,118210.0,118200.0,1e-08]
[1755199918171,2.12568267,118210.0,118200.0,1e-08]
[1755199918962,2.3301383,118210.0,118200.0,1e-08]
[1755199919988,0.16923337,118180.0,118170.0,0.0038344]
[1755199920193,0.43188026,118180.0,118170.0,0.0059344]
[1755199920403,0.84361919,118180.0,118170.0,0.0059344]
[1755199920812,0.84357919,118180.0,118170.0,0.0059344]
[1755199921017,0.84357919,118180.0,118170.0,0.0297944]
[1755199921225,0.79757555,118180.0,118170.0,0.03028667]
[1755199921432,0.79757555,118180.0,118170.0,0.03428667]
[1755199921859,0.79757555,118180.0,118170.0,0.03628667]
[1755199922926,0.84833555,118180.0,118170.0,0.03628667]
[1755199924041,0.8594446,118180.0,118170.0,0.00728667]
[1755199924281,0.95937805,118180.0,118170.0,0.00728667]
[1755199924941,0.95937805,118180.0,118170.0,0.00528667]
[1755199925151,0.99671612,118180.0,118170.0,0.00128667]
[1755199925854,0.99671612,118180.0,118170.0,0.00328667]
[1755199927174,0.99152612,118180.0,118170.0,0.00540667]
[1755199928067,0.98559596,118180.0,118170.0,0.00540667]
[1755199928300,0.99151312,118180.0,118170.0,0.00540667]
[1755199929214,0.37328281,118180.0,118170.0,0.00540667]
[1755199929451,0.67262474,118180.0,118170.0,0.00845667]
[1755199929653,1.06857346,118180.0,118170.0,0.00845667]
[1755199930099,1.06857346,118180.0,118170.0,0.00540667]
[1755199931021,1.06857346,118180.0,118170.0,0.00845667]
[1755199931264,0.70438917,118180.0,118170.0,0.00845667]
[1755199931473,0.70438917,118180.0,118170.0,0.03231667]
[1755199934002,0.55326351,118180.0,118170.0,0.20156436]
[1755199934205,0.60433908,118180.0,118170.0,0.22656436]
[1755199934413,0.30154571,118180.0,118170.0,0.64305745]
[1755199934656,0.43510571,118180.0,118170.0,0.64305745]
[1755199934851,0.01578246,118180.0,118170.0,0.98305745]
[1755199935061,0.14934246,118180.0,118170.0,1.06554188]
[1755199936105,0.14934246,118180.0,118170.0,1.06354188]
[1755199936306,0.13356,118180.0,118170.0,1.06354188]
[1755199936792,0.13356,118180.0,118170.0,1.05076011]
[1755199937268,0.13356,118180.0,118170.0,1.05176011]
[1755199937504,0.16918889,118220.0,118210.0,0.025]
[1755199937720,0.40114903,118220.0,118210.0,0.02712]
[1755199937932,0.40114903,118220.0,118210.0,0.2014753]
[1755199938127,0.40114903,118220.0,118210.0,0.03017]
[1755199938350,0.40114903,118220.0,118210.0,0.03228488]
[1755199938804,0.40114903,118220.0,118210.0,0.03243257]
[1755199939012,0.40114903,118220.0,118210.0,0.03343257]
[1755199939895,0.38535214,118220.0,118210.0,0.03343257]
[1755199940102,0.26771334,118220.0,118210.0,0.20262299]
[1755199940333,0.23180877,118220.0,118210.0,0.22105248]
[1755199940558,0.40098488,118220.0,118210.0,0.22105248]
[1755199940788,0.40098488,118220.0,118210.0,0.22205248]
[1755199941233,0.48346931,118220.0,118210.0,0.22205248]
[1755199941890,0.40098488,118220.0,118210.0,0.22205248]
[1755199943988,0.38517936,118220.0,118210.0,0.22205248]
[1755199944436,0.38517936,118220.0,118210.0,0.21900248]
[1755199945083,0.38517936,118220.0,118210.0,0.04981206]
[1755199945283,0.38517936,118220.0,118210.0,0.05192694]
[1755199945518,0.46976379,118220.0,118210.0,0.04981206]
[1755199945734,0.47269379,118220.0,118210.0,0.04981206]
[1755199946636,0.47269379,118220.0,118210.0,0.02926769]
[1755199946849,0.47269379,118220.0,118210.0,0.04981206]
[1755199947899,0.47269379,118220.0,118210.0,0.02926769]
[1755199948307,0.47269379,118220.0,118210.0,0.04981206]
[1755199948964,0.93834517,118220.0,118210.0,0.02269206]
[1755199949165,0.95579419,118220.0,118210.0,0.02269206]
[1755199950398,0.95579419,118220.0,118210.0,0.00214769]
[1755199950604,0.9715674,118220.0,118210.0,0.00214769]
[1755199951247,1.0223274,118220.0,118210.0,0.00214769]
[1755199951463,1.3623274,118220.0,118210.0,0.00214769]
[1755199951663,1.3623274,118220.0,118210.0,0.00114769]
[1755199952404,1.36233131,118220.0,118210.0,0.00114769]
[1755199952678,1.36333131,118220.0,118210.0,0.00114769]
[1755199953587,0.16923337,118180.0,118170.0,0.0257944]
[1755199953869,0.89102942,118180.0,118170.0,0.02628667]
[1755199955257,0.89102942,118180.0,118170.0,0.02928667]
[1755199955457,0.89102942,118180.0,118170.0,0.04983104]
[1755199955751,0.42537804,118180.0,118170.0,0.04983104]
[1755199955945,0.42537804,118180.0,118170.0,0.04683104]
[1755199956156,0.88120827,118180.0,118170.0,0.00328667]
[1755199959359,0.8969974,118180.0,118170.0,0.00328667]
[1755199961182,1.08424827,118180.0,118170.0,0.00328667]
[1755199961604,0.47747564,118180.0,118170.0,0.00328667]
[1755199961802,0.67249638,118180.0,118170.0,0.00530667]
[1755199962199,0.67458638,118180.0,118170.0,0.00530667]
[1755199962408,1.14335776,118180.0,118170.0,0.00328667]
[1755199962630,1.15163515,118180.0,118170.0,0.00328667]
[1755199962925,1.08373048,118180.0,118170.0,0.00328667]
[1755199964411,0.61565303,118180.0,118170.0,0.00530667]
[1755199964614,0.60528564,118180.0,118170.0,0.00530667]
[1755199964841,0.60528564,118180.0,118170.0,0.00826667]
[1755199965044,0.45499662,118180.0,118170.0,0.22517432]
[1755199965270,0.58819662,118180.0,118170.0,0.24642873]
[1755199965881,0.38515662,118180.0,118170.0,0.24642873]
[1755199966041,0.25195662,118180.0,118170.0,0.24642873]
[1755199966244,0.38515662,118180.0,118170.0,0.24642873]
[1755199966442,0.41830811,118180.0,118170.0,0.24642873]
[1755199968764,0.38515662,118180.0,118170.0,0.24642873]
[1755199970015,0.21592325,118180.0,118170.0,0.24642873]
[1755199970428,0.08272325,118180.0,118170.0,0.24642873]
[1755199970634,0.21572325,118180.0,118170.0,0.24642873]
[1755199971442,0.21572325,118180.0,118170.0,0.27183273]
[1755199972822,0.21572325,118180.0,118170.0,0.24642873]
[1755199976457,0.08272325,118180.0,118170.0,0.24642873]
[1755199976898,0.18080952,118200.0,118190.0,0.19421905]
[1755199976899,0.17768952,118200.0,118190.0,0.19421905]
[1755199977120,0.39325277,118200.0,118190.0,0.19623905]
[1755199977797,0.39325277,118200.0,118190.0,0.02702]
[1755199978012,0.39846277,118200.0,118190.0,0.02913523]
[1755199978430,0.40046277,118200.0,118190.0,0.02711523]
[1755199978640,0.40146277,118200.0,118190.0,0.02711523]
[1755199979147,0.42364955,118200.0,118190.0,0.02711523]
[1755199980335,0.39625277,118200.0,118190.0,0.02913523]
[1755199980901,0.39625277,118200.0,118190.0,0.0496796]
[1755199981231,0.40146277,118200.0,118190.0,0.0496796]
[1755199982596,0.40146277,118200.0,118190.0,0.04554437]
[1755199982805,0.26862277,118200.0,118190.0,0.04554437]
[1755199983070,0.4839472,118200.0,118190.0,0.04554437]
[1755199987215,0.4839472,118200.0,118190.0,0.0476596]
[1755199987432,0.40146277,118200.0,118190.0,0.04554437]
[1755199988391,0.45222277,118200.0,118190.0,0.04554437]
[1755199988616,0.40146277,118200.0,118190.0,0.04554437]
[1755199988838,0.79898908,118200.0,118190.0,0.04554437]
[1755199993652,0.40146277,118200.0,118190.0,0.04554437]
[1755199993853,0.87896531,118200.0,118190.0,0.04554437]
[1755199995446,0.481439,118200.0,118190.0,0.04554437]
[1755199995665,0.87896531,118200.0,118190.0,0.04554437]
[1755199996063,0.81484117,118200.0,118190.0,0.04554437]
[1755199996277,0.79898908,118200.0,118190.0,0.04554437]
[1755199996456,0.81484127,118200.0,118190.0,0.04554437]
[1755199997400,0.81484254,118200.0,118190.0,0.04554437]
[1755199998465,0.81484346,118200.0,118190.0,0.04554437]
[1755199998672,0.89732789,118200.0,118190.0,0.04554437]
[1755199999905,0.40358236,118200.0,118190.0,0.21994342]
[1755200000111,0.38772798,118200.0,118190.0,0.21994342]
[1755200000822,0.38472798,118200.0,118190.0,0.21994342]
[1755200001219,0.38472798,118200.0,118190.0,0.22194342]
[1755200001417,0.38390698,118200.0,118190.0,0.22194342]
[1755200002882,0.08190225,118200.0,118190.0,0.70679222]
[1755200003101,0.20304,118210.0,118200.0,0.2147491]
[1755200003319,0.58775367,118210.0,118200.0,0.2167791]
[1755200003525,0.58775367,118210.0,118200.0,0.2199291]
[1755200004064,0.58775367,118210.0,118200.0,0.2167791]
[1755200004287,0.58875367,118210.0,118200.0,0.23803932]
[1755200004942,0.58875367,118210.0,118200.0,0.2167791]
[1755200005157,0.59383367,118210.0,118200.0,0.04554437]
[1755200005363,0.59383367,118210.0,118200.0,0.2147491]
[1755200006946,0.59383367,118210.0,118200.0,0.2167791]
[1755200007334,0.59383367,118210.0,118200.0,0.2147491]
[1755200007464,0.59473367,118210.0,118200.0,0.2167791]
[1755200013532,0.5880082,118210.0,118200.0,0.25569392]
[1755200015283,0.5880082,118210.0,118200.0,0.04757437]
[1755200015931,0.98553451,118210.0,118200.0,0.04554437]
[1755200016151,1.05319637,118210.0,118200.0,0.025]
[1755200016363,0.16920473,118200.0,118190.0,0.04554437]
[1755200016579,0.16920473,118200.0,118190.0,0.025]
[1755200016580,0.38669798,118200.0,118190.0,0.025]
[1755200016786,1.1847906,118200.0,118190.0,0.025]
[1755200017017,0.16923337,118180.0,118170.0,0.04683104]
[1755200017222,0.78435293,118180.0,118170.0,0.02628667]
[1755200017458,0.78739293,118180.0,118170.0,0.04683104]
[1755200018056,0.38986662,118180.0,118170.0,0.04683104]
[1755200018281,0.38986662,118180.0,118170.0,0.05294663]
[1755200018498,0.13276,118180.0,118170.0,0.62907622]
[1755200018717,0.13276,118180.0,118170.0,0.62484504]
[1755200020056,0.13276,118180.0,118170.0,0.70425569]
[1755200020264,0.13276,118180.0,118170.0,0.62484504]
[1755200020440,0.13276,118180.0,118170.0,0.22731873]
[1755200020675,0.13276,118180.0,118170.0,0.62484504]
[1755200020849,0.30199337,118180.0,118170.0,0.62484504]
[1755200021062,0.30714337,118180.0,118170.0,0.22207873]
[1755200021229,0.38986662,118180.0,118170.0,0.05283104]
[1755200021441,0.78739293,118180.0,118170.0,0.03228667]
[1755200021989,0.78739293,118180.0,118170.0,0.05283104]
[1755200022220,0.38986662,118180.0,118170.0,0.05494663]
[1755200022575,0.38986662,118180.0,118170.0,0.22419432]
[1755200022779,0.38986662,118180.0,118170.0,0.22207873]
[1755200023226,0.08787325,118180.0,118170.0,0.62161504]
[1755200023434,0.08787325,118180.0,118170.0,0.62484504]
[1755200023435,0.21548325,118180.0,118170.0,0.62484504]
[1755200023648,0.08272325,118180.0,118170.0,0.62484504]
[1755200023875,0.18070496,118200.0,118190.0,0.19421905]
[1755200024100,0.08787325,118200.0,118190.0,0.61429973]
[1755200024301,0.38983798,118200.0,118190.0,0.61429973]
[1755200024538,0.38983798,118200.0,118190.0,0.21677342]
[1755200024744,0.38983798,118200.0,118190.0,0.23441944]
[1755200025191,0.38983798,118200.0,118190.0,0.04755437]
[1755200025417,0.38983798,118200.0,118190.0,0.04754437]
[1755200027539,0.21954387,118200.0,118190.0,0.21887865]
[1755200027841,0.3887486,118200.0,118190.0,0.21676342]
[1755200029090,0.3887486,118200.0,118190.0,0.04754437]
[1755200029295,0.3887486,118200.0,118190.0,0.0496596]
[1755200029500,0.3896486,118200.0,118190.0,0.11130037]
[1755200030224,0.3896486,118200.0,118190.0,0.21887865]
[1755200030438,0.3896486,118200.0,118190.0,0.21676342]
[1755200031682,0.2568886,118200.0,118190.0,0.21877342]
[1755200031879,0.3896486,118200.0,118190.0,0.21877342]
[1755200033152,0.38933281,118200.0,118190.0,0.61629973]
[1755200033586,0.38933281,118200.0,118190.0,0.04955437]
[1755200033760,0.38933281,118200.0,118190.0,0.0516696]
[1755200033989,0.38933281,118200.0,118190.0,0.0496596]
[1755200035588,0.38933281,118200.0,118190.0,0.21887865]
[1755200035808,0.38933281,118200.0,118190.0,0.21676342]
[1755200040293,0.38769798,118200.0,118190.0,0.61629973]
[1755200041069,0.38769798,118200.0,118190.0,0.21877342]
[1755200042378,0.39073798,118200.0,118190.0,0.04955437]
[1755200042582,0.39073798,118200.0,118190.0,0.21887865]
[1755200042731,0.39073798,118200.0,118190.0,0.21676342]
[1755200043080,0.39073798,118200.0,118190.0,0.04754437]
[1755200043333,0.39073798,118200.0,118190.0,0.21887865]
[1755200043589,0.39073798,118200.0,118190.0,0.21676342]
[1755200046372,0.39073798,118200.0,118190.0,0.04754437]
[1755200046578,0.39073798,118200.0,118190.0,0.21887865]
[1755200046761,0.39073798,118200.0,118190.0,0.04754437]
[1755200046942,0.39073798,118200.0,118190.0,0.0516696]
[1755200047133,0.39073798,118200.0,118190.0,0.0496596]
[1755200047521,0.39073798,118200.0,118190.0,0.04754437]
[1755200049190,0.39073798,118200.0,118190.0,0.0496596]
[1755200051439,0.39073798,118200.0,118190.0,0.21887865]
[1755200051657,0.08362325,118200.0,118190.0,0.6838876]
[1755200051861,0.21630325,118200.0,118190.0,0.6838876]
[1755200052065,0.21630325,118200.0,118190.0,0.7092866]
[1755200052279,0.21630325,118200.0,118190.0,0.31176029]
[1755200052509,0.38550798,118200.0,118190.0,0.7092866]
[1755200052722,0.38550798,118200.0,118190.0,0.31176029]
[1755200052934,0.38550798,118200.0,118190.0,0.64480873]
[1755200053150,0.39069798,118200.0,118190.0,0.24231242]
[1755200053299,0.39069798,118200.0,118190.0,0.24631242]
[1755200053740,0.39069798,118200.0,118190.0,0.07494337]
[1755200054086,0.78822429,118200.0,118190.0,0.031]
[1755200054202,0.78822429,118200.0,118190.0,0.05154437]
[1755200054413,0.78822429,118200.0,118190.0,0.031]
[1755200054617,0.81052474,118200.0,118190.0,0.004]
[1755200054846,0.39069798,118200.0,118190.0,0.004]
[1755200055048,0.78822429,118200.0,118190.0,0.02154437]
[1755200055257,0.78822429,118200.0,118190.0,0.001]
[1755200055628,0.78822429,118200.0,118190.0,0.04654437]
[1755200055829,0.39069798,118200.0,118190.0,0.04554437]
[1755200062190,0.78822429,118200.0,118190.0,0.04554437]
[1755200064303,0.78822429,118200.0,118190.0,0.025]
[1755200064853,0.89661797,118200.0,118180.0,0.04554437]
[1755200065062,0.65256861,118190.0,118180.0,0.04554437]
[1755200065275,0.65465861,118190.0,118180.0,0.04554437]
[1755200066237,0.65465861,118190.0,118180.0,0.02154437]
[1755200066459,0.65465861,118190.0,118180.0,0.04554437]
[1755200066844,0.65465861,118190.0,118180.0,0.04654437]
[1755200067250,0.2571323,118190.0,118180.0,0.04654437]
[1755200067900,0.2571323,118190.0,118180.0,0.04869437]
[1755200068368,0.2540323,118190.0,118180.0,0.04869437]
[1755200068596,0.2571323,118190.0,118180.0,0.04869437]
[1755200069053,0.2571323,118190.0,118180.0,0.04654437]
[1755200071718,0.2580323,118190.0,118180.0,0.04654437]
[1755200072152,0.65555861,118190.0,118180.0,0.04654437]
[1755200073083,0.2580323,118190.0,118180.0,0.04869437]
[1755200073291,0.2549323,118190.0,118180.0,0.04869437]
[1755200073715,0.2580323,118190.0,118180.0,0.04869437]
[1755200073970,0.2580323,118190.0,118180.0,0.04654437]
[1755200074184,0.7103706,118190.0,118180.0,0.04654437]
[1755200074400,0.65555861,118190.0,118180.0,0.04654437]
[1755200084407,0.80560763,118190.0,118180.0,0.001]
[1755200084616,1.00560763,118190.0,118180.0,0.001]
[1755200085045,0.60808132,118190.0,118180.0,0.001]
[1755200085262,1.00560763,118190.0,118180.0,0.001]
[1755200085453,1.08809206,118190.0,118180.0,0.001]
[1755200086635,0.18668239,118180.0,118170.0,0.02183104]
[1755200086801,0.80156195,118180.0,118170.0,0.02183104]
[1755200087053,0.80452195,118180.0,118170.0,0.02183104]
[1755200088515,0.81276427,118180.0,118170.0,0.02183104]
[1755200089569,0.81276427,118180.0,118170.0,0.02283104]
[1755200092739,0.81366427,118180.0,118170.0,0.02283104]
[1755200093267,0.86442427,118180.0,118170.0,0.00228667]
[1755200093582,0.81366427,118180.0,118170.0,0.02283104]
[1755200094177,0.81366427,118180.0,118170.0,0.00228667]
[1755200094379,0.81366427,118180.0,118170.0,0.02283104]
[1755200095918,0.85966791,118180.0,118170.0,0.02283104]
[1755200096522,0.81366427,118180.0,118170.0,0.02283104]
[1755200097404,0.81366427,118180.0,118170.0,0.00228667]
[1755200097750,0.81366427,118180.0,118170.0,0.02283104]
[1755200099634,0.8971737,118180.0,118170.0,0.02283104]
[1755200099840,0.82951184,118180.0,118170.0,0.00228667]
[1755200100037,0.44739148,118180.0,118170.0,0.02283104]
[1755200100250,0.43198553,118180.0,118170.0,0.02283104]
[1755200100620,0.82951249,118180.0,118170.0,0.02283104]
[1755200100833,0.43198618,118180.0,118170.0,0.02283104]
[1755200100973,0.82951249,118180.0,118170.0,0.02283104]
[1755200101405,0.43198618,118180.0,118170.0,0.02283104]
[1755200101599,0.82951249,118180.0,118170.0,0.02283104]
[1755200101947,0.43198618,118180.0,118170.0,0.02283104]
[1755200102189,0.82951249,118180.0,118170.0,0.02283104]
[1755200102698,0.9115902,118180.0,118170.0,0.02283104]
[1755200103404,0.89574198,118180.0,118170.0,0.02283104]
[1755200104537,0.49821567,118180.0,118170.0,0.02283104]
[1755200104751,0.89574198,118180.0,118170.0,0.02283104]
[1755200104957,0.49821567,118180.0,118170.0,0.02283104]
[1755200105158,0.89574198,118180.0,118170.0,0.00228667]
[1755200105360,0.89574198,118180.0,118170.0,0.02283104]
[1755200106011,0.81366427,118180.0,118170.0,0.02283104]
[1755200107161,0.41609796,118180.0,118170.0,0.02283104]
[1755200107374,0.81362427,118180.0,118170.0,0.02283104]
[1755200112004,0.41609796,118180.0,118170.0,0.02283104]
[1755200112200,0.81362427,118180.0,118170.0,0.02283104]
[1755200112401,0.8961087,118180.0,118170.0,0.02283104]
[1755200113266,0.81362427,118180.0,118170.0,0.02283104]
[1755200113470,0.81362427,118180.0,118170.0,0.00228667]
[1755200113618,0.81362427,118180.0,118170.0,0.02283104]
[1755200113815,0.81362427,118180.0,118170.0,0.00228667]
[1755200114093,0.81362427,118180.0,118170.0,0.02283104]
[1755200115078,0.41609796,118180.0,118170.0,0.02283104]
[1755200115292,0.81362427,118180.0,118170.0,0.02283104]
[1755200116741,0.81362427,118180.0,118170.0,0.00228667]
[1755200116979,0.81362427,118180.0,118170.0,0.02283104]
[1755200117804,0.96377056,118180.0,118170.0,0.00228667]
[1755200118039,1.71713997,118180.0,118170.0,0.00228667]
[1755200118238,1.21246466,118180.0,118170.0,0.00228667]
[1755200118444,1.34618466,118180.0,118170.0,0.00228667]
[1755200118910,1.34614466,118180.0,118170.0,0.00128667]
[1755200119151,1.21446466,118180.0,118170.0,0.00128667]
[1755200119383,1.2824828,118180.0,118170.0,0.00128667]
[1755200119648,1.1488028,118180.0,118170.0,0.00128667]
[1755200119831,1.2824828,118180.0,118170.0,0.00128667]
[1755200121008,1.28247158,118180.0,118170.0,0.00128667]
[1755200121814,1.2666397,118180.0,118170.0,0.00128667]
[1755200122107,1.1329597,118180.0,118170.0,0.00128667]